{"text_format":"3","workbook":"xlsx","n_sheets":4,"sheets":["Έναρξη","ΠΑΡΆΜΕΤΡΟΙ ΈΡΓΟΥ","ΛΕΠΤΟΜΕΡΕΙΕΣ ΕΡΓΟΥ","ΣΥΝΟΛΑ ΕΡΓΟΥ"],"not_rendered":{"charts":2,"defined_names":3,"pivot_tables":1},"read":"whole","date_system":"1900"}

{"sheet":"Έναρξη","index":0,"n_rows":8,"n_cols":2,"rows_kept":8}
[null,"ΠΛΗΡΟΦΟΡΙΕΣ ΓΙΑ ΑΥΤΟ ΤΟ ΠΡΟΤΥΠΟ"]
[]
[null,"Χρησιμοποιήστε αυτό το βιβλίο εργασίας για να παρακολουθείτε τις παράμετροι έργου, τις σύνολα έργου και τα σύνολα κατά τον σχεδιασμός έργου για δικηγορικά γραφεία."]
[null,"Συμπληρώστε την επωνυμία εταιρείας στο φύλλο εργασίας \"Παράμετροι έργου\" και θα ενημερωθεί αυτόματα στα άλλα φύλλα εργασίας."]
[null,"Εισαγάγετε πληροφορίες στο φύλλο εργασίας \"Παράμετροι έργου\" για να ενημερώσετε τα γραφήματα στηλών, καθώς και στο φύλλο εργασίας \"Λεπτομέρειες έργου\". Ο Συγκεντρωτικός Πίνακας στο φύλλο εργασίας \"Σύνολα έργου\" ενημερώνεται αυτόματα."]
[null,"Σημείωση:  "]
[null,"Στη στήλη A σε κάθε φύλλο εργασίας παρέχονται πρόσθετες οδηγίες. Αυτό το κείμενο είναι κρυφό σκόπιμα. Για να καταργήσετε το κείμενο, επιλέξτε τη στήλη A και, στη συνέχεια, πατήστε το πλήκτρο DELETE. Για να εμφανίσετε το κείμενο, επιλέξτε τη στήλη A και, στη συνέχεια, αλλάξτε το χρώμα γραμματοσειράς."]
[null,"Για να μάθετε περισσότερα για τους πίνακες στα φύλλα εργασίας, πατήστε το πλήκτρο SHIFT και, στη συνέχεια, πατήστε το F10 μέσα σε έναν πίνακα, επιλέξτε \"ΠΙΝΑΚΑΣ\" και, στη συνέχεια, επιλέξτε \"ΕΝΑΛΛΑΚΤΙΚΟ ΚΕΙΜΕΝΟ\". Για τους Συγκεντρωτικούς Πίνακες, στο φύλλο εργασίας \"Σύνολα έργου\", πατήστε το πλήκτρο SHIFT και, στη συνέχεια, πατήστε το F10 μέσα στον πίνακα, επιλέξτε \"ΕΠΙΛΟΓΕΣ ΣΥΓΚΕΝΤΡΩΤΙΚΟΥ ΠΙΝΑΚΑ\" και, στη συνέχεια, επιλέξτε την καρτέλα \"ΕΝΑΛΛΑΚΤΙΚΟ ΚΕΙΜΕΝΟ\"."]

{"sheet":"ΠΑΡΆΜΕΤΡΟΙ ΈΡΓΟΥ","index":1,"n_rows":19,"n_cols":9,"rows_kept":19}
["Δημιουργήστε παράμετροι έργου σε αυτό το φύλλο εργασίας. Εισαγάγετε την επωνυμία εταιρείας στο κελί στα δεξιά. Σε κελιά σε αυτή τη στήλη βρίσκονται χρήσιμες οδηγίες.","Επωνυμία εταιρείας"]
["Ο τίτλος αυτού του φύλλου εργασίας βρίσκεται στο κελί στα δεξιά.","Σχεδιασμός έργου για δικηγορικά γραφεία"]
["Το κελί στα δεξιά περιέχει ένα μήνυμα εμπιστευτικότητας.",{"$f":"B1&\" της εταιρείας\"","v":"Επωνυμία εταιρείας της εταιρείας"}]
["Στο κελί στα δεξιά βρίσκεται συμβουλή.","Τα σκιασμένα κελιά υπολογίζονται αυτόματα. Δεν χρειάζεται να εισαγάγετε τίποτα σε αυτά."]
["Εισαγάγετε λεπτομέρειες στον πίνακα \"Παράμετροι\" που ξεκινά από το κελί στα δεξιά. Η επόμενη οδηγία βρίσκεται στο κελί A12.","ΤΥΠΟΣ ΕΡΓΟΥ","ΣΥΝΕΡΓΆΤΗΣ ΓΕΝΙΚΩΝ ΥΠΟΘΕΣΕΩΝ","ΔΙΚΗΓΟΡΟΣ ΕΠΙΧΕΙΡΗΣΕΩΝ","ΣΥΝΗΓΟΡΟΣ ΥΠΕΡΑΣΠΙΣΗΣ","ΔΙΚΗΓΌΡΟΣ ΠΝΕΥΜΑΤΙΚΉΣ ΙΔΙΟΚΤΗΣΊΑΣ","ΔΙΚΗΓΌΡΟΣ ΠΤΏΧΕΥΣΕΩΝ","ΔΙΟΙΚΗΤΙΚΟ ΠΡΟΣΩΠΙΚΟ","ΆΘΡΟΙΣΜΑ"]
[null,"Δημιουργία καταστατικού επιχείρησης",{"v":0.1,"d":"10%"},{"v":0.4,"d":"40%"},{"v":0,"d":"0%"},{"v":0,"d":"0%"},{"v":0,"d":"0%"},{"v":0.5,"d":"50%"},{"$f":"SUM(Παράμετροι[[#This Row],[ΣΥΝΕΡΓΆΤΗΣ ΓΕΝΙΚΩΝ ΥΠΟΘΕΣΕΩΝ]:[ΔΙΟΙΚΗΤΙΚΟ ΠΡΟΣΩΠΙΚΟ]])","v":{"v":1,"d":"100%"}}]
[null,"Εξαγορά επιχείρησης",{"v":0.1,"d":"10%"},{"v":0.4,"d":"40%"},{"v":0,"d":"0%"},{"v":0.1,"d":"10%"},{"v":0,"d":"0%"},{"v":0.4,"d":"40%"},{"$f":"SUM(Παράμετροι[[#This Row],[ΣΥΝΕΡΓΆΤΗΣ ΓΕΝΙΚΩΝ ΥΠΟΘΕΣΕΩΝ]:[ΔΙΟΙΚΗΤΙΚΟ ΠΡΟΣΩΠΙΚΟ]])","v":{"v":1,"d":"100%"}}]
[null,"Νομική προστασία από ευθύνη προϊόντος",{"v":0.2,"d":"20%"},{"v":0,"d":"0%"},{"v":0.5,"d":"50%"},{"v":0,"d":"0%"},{"v":0,"d":"0%"},{"v":0.3,"d":"30%"},{"$f":"SUM(Παράμετροι[[#This Row],[ΣΥΝΕΡΓΆΤΗΣ ΓΕΝΙΚΩΝ ΥΠΟΘΕΣΕΩΝ]:[ΔΙΟΙΚΗΤΙΚΟ ΠΡΟΣΩΠΙΚΟ]])","v":{"v":1,"d":"100%"}}]
[null,"Αίτηση ευρεσιτεχνίας",{"v":0.1,"d":"10%"},{"v":0,"d":"0%"},{"v":0,"d":"0%"},{"v":0.6,"d":"60%"},{"v":0,"d":"0%"},{"v":0.3,"d":"30%"},{"$f":"SUM(Παράμετροι[[#This Row],[ΣΥΝΕΡΓΆΤΗΣ ΓΕΝΙΚΩΝ ΥΠΟΘΕΣΕΩΝ]:[ΔΙΟΙΚΗΤΙΚΟ ΠΡΟΣΩΠΙΚΟ]])","v":{"v":1,"d":"100%"}}]
[null,"Αγωγή υπαλλήλου",{"v":0.2,"d":"20%"},{"v":0.1,"d":"10%"},{"v":0.4,"d":"40%"},{"v":0,"d":"0%"},{"v":0,"d":"0%"},{"v":0.3,"d":"30%"},{"$f":"SUM(Παράμετροι[[#This Row],[ΣΥΝΕΡΓΆΤΗΣ ΓΕΝΙΚΩΝ ΥΠΟΘΕΣΕΩΝ]:[ΔΙΟΙΚΗΤΙΚΟ ΠΡΟΣΩΠΙΚΟ]])","v":{"v":1,"d":"100%"}}]
[null,"Πτώχευση",{"v":0.1,"d":"10%"},{"v":0.2,"d":"20%"},{"v":0,"d":"0%"},{"v":0,"d":"0%"},{"v":0.4,"d":"40%"},{"v":0.3,"d":"30%"},{"$f":"SUM(Παράμετροι[[#This Row],[ΣΥΝΕΡΓΆΤΗΣ ΓΕΝΙΚΩΝ ΥΠΟΘΕΣΕΩΝ]:[ΔΙΟΙΚΗΤΙΚΟ ΠΡΟΣΩΠΙΚΟ]])","v":{"v":1,"d":"100%"}}]
["Εισαγάγετε μεικτές τιμές στα κελιά στα δεξιά, κελιά C12 έως Η12. Η επόμενη οδηγία βρίσκεται στο κελί A14.","Μεικτές τιμές",{"v":350,"d":"350 €"},{"v":250,"d":"250 €"},{"v":300,"d":"300 €"},{"v":275,"d":"275 €"},{"v":225,"d":"225 €"},{"v":125,"d":"125 €"}]
[]
["Ένα γράφημα στηλών που εμφανίζει τη σύγκριση του προγραμματισμένου με το πραγματικό κόστος βρίσκεται στο κελί στα δεξιά και το γράφημα στηλών που εμφανίζει τη σύγκριση των προγραμματισμένων με τις πραγματικές ώρες εργασίας βρίσκεται στο κελί F14."]
[null,null,"ΣΥΝΕΡΓΆΤΗΣ ΓΕΝΙΚΩΝ ΥΠΟΘΕΣΕΩΝ","ΕΠΙΧΕΙΡΗΣΕΙΣ","ΣΥΝΗΓΟΡΟΣ ΥΠΕΡΑΣΠΙΣΗΣ","ΠΝΕΥΜΑΤΙΚΉ ΙΔΙΟΚΤ.","ΠΤΩΧΕΥΣΗ","ΔΙΟΙΚΗΤΙΚΟ ΠΡΟΣΩΠΙΚΟ"]
[null,"ΠΡΟΓΡΑΜΜΑΤΙΣΜΈΝΟ ΚΌΣΤΟΣ",{"$f":"SUBTOTAL(109,Λεπτομέρειες[ΣΥΝΕΡΓΆΤΗΣ ΓΕΝΙΚΩΝ ΥΠΟΘΕΣΕΩΝ])","v":{"v":78750,"d":"78,750.00 €"}},{"$f":"SUBTOTAL(109,Λεπτομέρειες[ΔΙΚΗΓΟΡΟΣ ΕΠΙΧΕΙΡΗΣΕΩΝ])","v":{"v":66250,"d":"66,250.00 €"}},{"$f":"SUBTOTAL(109,Λεπτομέρειες[ΣΥΝΗΓΟΡΟΣ ΥΠΕΡΑΣΠΙΣΗΣ])","v":{"v":105000,"d":"105,000.00 €"}},{"$f":"SUBTOTAL(109,Λεπτομέρειες[ΔΙΚΗΓΌΡΟΣ ΠΝΕΥΜΑΤΙΚΉΣ ΙΔΙΟΚΤΗΣΊΑΣ])","v":{"v":35750,"d":"35,750.00 €"}},{"$f":"SUBTOTAL(109,Λεπτομέρειες[ΔΙΚΗΓΌΡΟΣ ΠΤΏΧΕΥΣΕΩΝ])","v":{"v":0,"d":"0.00 €"}},{"$f":"SUBTOTAL(109,Λεπτομέρειες[ΔΙΟΙΚΗΤΙΚΟ ΠΡΟΣΩΠΙΚΟ])","v":{"v":66250,"d":"66,250.00 €"}}]
[null,"ΠΡΑΓΜΑΤΙΚΟΥ ΚΟΣΤΟΥΣ",{"$f":"SUBTOTAL(109,Λεπτομέρειες[ΣΥΝΕΡΓΆΤΗΣ ΓΕΝΙΚΩΝ ΥΠΟΘΕΣΕΩΝ 2])","v":{"v":79275,"d":"79,275.00 €"}},{"$f":"SUBTOTAL(109,Λεπτομέρειες[ΔΙΚΗΓΟΡΟΣ ΕΠΙΧΕΙΡΗΣΕΩΝ 2])","v":{"v":67375,"d":"67,375.00 €"}},{"$f":"SUBTOTAL(109,Λεπτομέρειες[ΣΥΝΗΓΟΡΟΣ ΥΠΕΡΑΣΠΙΣΗΣ 2])","v":{"v":105600,"d":"105,600.00 €"}},{"$f":"SUBTOTAL(109,Λεπτομέρειες[ΔΙΚΗΓΌΡΟΣ ΠΝΕΥΜΑΤΙΚΉΣ ΙΔΙΟΚΤΗΣΊΑΣ 2])","v":{"v":34650,"d":"34,650.00 €"}},{"$f":"SUBTOTAL(109,Λεπτομέρειες[ΔΙΚΗΓΌΡΟΣ ΠΤΏΧΕΥΣΕΩΝ 2])","v":{"v":0,"d":"0.00 €"}},{"$f":"SUBTOTAL(109,Λεπτομέρειες[ΔΙΟΙΚΗΤΙΚΟ ΠΡΟΣΩΠΙΚΟ 2])","v":{"v":67000,"d":"67,000.00 €"}}]
[null,"ΠΡΟΓΡΑΜΜΑΤΙΣΜΈΝΕΣ ΏΡΕΣ",{"$f":"C16/$C$12","v":{"v":225,"d":"225.00"}},{"$f":"D16/$C$12","v":{"v":189.28571428571428,"d":"189.29"}},{"v":300,"d":"300.00"},{"v":102.14285714285714,"d":"102.14"},{"v":0,"d":"0.00"},{"v":189.28571428571428,"d":"189.29"}]
[null,"ΠΡΑΓΜΑΤΙΚΩΝ ΩΡΩΝ",{"$f":"C17/$C$12","v":{"v":226.5,"d":"226.50"}},{"$f":"D17/$C$12","v":{"v":192.5,"d":"192.50"}},{"$f":"E17/$C$12","v":{"v":301.7142857142857,"d":"301.71"}},{"$f":"F17/$C$12","v":{"v":99,"d":"99.00"}},{"$f":"G17/$C$12","v":{"v":0,"d":"0.00"}},{"$f":"H17/$C$12","v":{"v":191.42857142857142,"d":"191.43"}}]

{"sheet":"ΛΕΠΤΟΜΕΡΕΙΕΣ ΕΡΓΟΥ","index":2,"n_rows":10,"n_cols":25,"rows_kept":10,"merged":[[1,24,8,28]]}
["Δημιουργήστε λεπτομέρειες έργου σε αυτό το φύλλο εργασίας. Η επωνυμία εταιρείας ενημερώνεται αυτόματα στο κελί στα δεξιά. Σε κελιά σε αυτή τη στήλη βρίσκονται χρήσιμες οδηγίες. Πατήστε το κάτω βέλος για να ξεκινήσετε.",{"$f":"'ΠΑΡΆΜΕΤΡΟΙ ΈΡΓΟΥ'!B1","v":"Επωνυμία εταιρείας"}]
["Ο τίτλος αυτού του φύλλου εργασίας βρίσκεται στο κελί στα δεξιά και οι πληροφορίες συμβουλής βρίσκονται στο κελί Y2.",{"$f":"'ΠΑΡΆΜΕΤΡΟΙ ΈΡΓΟΥ'!B2","v":"Σχεδιασμός έργου για δικηγορικά γραφεία"},{"$nulls":22},"ΠΛΗΡΟΦΟΡΙΕΣ:\nΓια να προσθέσετε μια γραμμή, επιλέξτε το πιο κάτω δεξιά κελί στο κύριο σώμα του πίνακα (όχι στη γραμμή συνόλων) και πατήστε το πλήκτρο Tab ή πατήστε τον συνδυασμό πλήκτρων SHIFT+F10 στο σημείο όπου θέλετε να εισαχθεί η γραμμή και επιλέξτε Εισαγωγή | Γραμμές πίνακα επάνω από/κάτω από.\nΒεβαιωθείτε ότι έχουν διαγραφεί όλες οι γραμμές που δεν χρησιμοποιούνται, καθώς ο Συγκεντρωτικός Πίνακας ΣΎΝΟΛΑ ΈΡΓΟΥ θα χρησιμοποιήσει όλα τα κελιά πινάκων και διαφορετικά θα επέστρεφε εσφαλμένα αποτελέσματα."]
["Το κελί στα δεξιά περιέχει ένα μήνυμα εμπιστευτικότητας.",{"$f":"'ΠΑΡΆΜΕΤΡΟΙ ΈΡΓΟΥ'!B3","v":"Επωνυμία εταιρείας της εταιρείας"}]
["Εισαγάγετε πληροφορίες στον πίνακα \"Λεπτομέρειες\", ξεκινώντας από το κελί στα δεξιά. Οι τυποσ εργου στον πίνακα \"Λεπτομέρειες\" στα δεξιά ενημερώνονται αυτόματα από τον πίνακα \"Παράμετροι\" στο φύλλο εργασίας \"Παράμετροι έργου\".","ΟΝΟΜΑ ΕΡΓΟΥ","ΤΥΠΟΣ ΕΡΓΟΥ","ΕΚΤΙΜΩΜΕΝΗ ΕΝΑΡΞΗ","ΕΚΤΙΜΏΜΕΝΗ ΛΉΞΗ","ΠΡΑΓΜΑΤΙΚΗ ΕΝΑΡΞΗ","ΠΡΑΓΜΑΤΙΚΉ ΛΉΞΗ","ΕΚΤΙΜΩΜΕΝΗ ΕΡΓΑΣΙΑ","ΠΡΑΓΜΑΤΙΚΉ ΕΡΓΑΣΊΑ","ΕΚΤΙΜΏΜΕΝΗ ΔΙΆΡΚΕΙΑ","ΠΡΑΓΜΑΤΙΚΗ ΔΙΑΡΚΕΙΑ","ΣΥΝΕΡΓΆΤΗΣ ΓΕΝΙΚΩΝ ΥΠΟΘΕΣΕΩΝ","ΔΙΚΗΓΟΡΟΣ ΕΠΙΧΕΙΡΗΣΕΩΝ","ΣΥΝΗΓΟΡΟΣ ΥΠΕΡΑΣΠΙΣΗΣ","ΔΙΚΗΓΌΡΟΣ ΠΝΕΥΜΑΤΙΚΉΣ ΙΔΙΟΚΤΗΣΊΑΣ","ΔΙΚΗΓΌΡΟΣ ΠΤΏΧΕΥΣΕΩΝ","ΔΙΟΙΚΗΤΙΚΟ ΠΡΟΣΩΠΙΚΟ","ΣΥΝΕΡΓΆΤΗΣ ΓΕΝΙΚΩΝ ΥΠΟΘΕΣΕΩΝ 2","ΔΙΚΗΓΟΡΟΣ ΕΠΙΧΕΙΡΗΣΕΩΝ 2","ΣΥΝΗΓΟΡΟΣ ΥΠΕΡΑΣΠΙΣΗΣ 2","ΔΙΚΗΓΌΡΟΣ ΠΝΕΥΜΑΤΙΚΉΣ ΙΔΙΟΚΤΗΣΊΑΣ 2","ΔΙΚΗΓΌΡΟΣ ΠΤΏΧΕΥΣΕΩΝ 2","ΔΙΟΙΚΗΤΙΚΟ ΠΡΟΣΩΠΙΚΟ 2"]
[null,"Έργο 1","Δημιουργία καταστατικού επιχείρησης",{"$f":"TODAY()","v":"2019-02-15"},{"$f":"TODAY()+60","v":"2019-04-16"},{"$f":"TODAY()+10","v":"2019-02-25"},{"$f":"TODAY()+65","v":"2019-04-21"},200,220,{"$f":"DAYS360(Λεπτομέρειες[[#This Row],[ΕΚΤΙΜΩΜΕΝΗ ΕΝΑΡΞΗ]],Λεπτομέρειες[[#This Row],[ΕΚΤΙΜΏΜΕΝΗ ΛΉΞΗ]],FALSE)","v":61},{"$f":"DAYS360(Λεπτομέρειες[[#This Row],[ΠΡΑΓΜΑΤΙΚΗ ΕΝΑΡΞΗ]],Λεπτομέρειες[[#This Row],[ΠΡΑΓΜΑΤΙΚΉ ΛΉΞΗ]],FALSE)","v":56},{"$f":"INDEX(Παράμετροι[],MATCH(Λεπτομέρειες[[#This Row],[ΤΥΠΟΣ ΕΡΓΟΥ]],Παράμετροι[ΤΥΠΟΣ ΕΡΓΟΥ],0),MATCH(Λεπτομέρειες[[#Headers],[ΣΥΝΕΡΓΆΤΗΣ ΓΕΝΙΚΩΝ ΥΠΟΘΕΣΕΩΝ]],Παράμετροι[#Headers],0))*INDEX('ΠΑΡΆΜΕΤΡΟΙ ΈΡΓΟΥ'!$B$12:$H$12,1,MATCH(Λεπτομέρειες[[#Headers],[ΣΥΝΕΡΓΆΤΗΣ ΓΕΝΙΚΩΝ ΥΠΟΘΕΣΕΩΝ]],Παράμετροι[#Headers],0))*Λεπτομέρειες[[#This Row],[ΕΚΤΙΜΩΜΕΝΗ ΕΡΓΑΣΙΑ]]","v":{"v":7000,"d":"7,000 €"}},{"$f":"INDEX(Παράμετροι[],MATCH(Λεπτομέρειες[[#This Row],[ΤΥΠΟΣ ΕΡΓΟΥ]],Παράμετροι[ΤΥΠΟΣ ΕΡΓΟΥ],0),MATCH(Λεπτομέρειες[[#Headers],[ΔΙΚΗΓΟΡΟΣ ΕΠΙΧΕΙΡΗΣΕΩΝ]],Παράμετροι[#Headers],0))*INDEX('ΠΑΡΆΜΕΤΡΟΙ ΈΡΓΟΥ'!$B$12:$H$12,1,MATCH(Λεπτομέρειες[[#Headers],[ΔΙΚΗΓΟΡΟΣ ΕΠΙΧΕΙΡΗΣΕΩΝ]],Παράμετροι[#Headers],0))*Λεπτομέρειες[[#This Row],[ΕΚΤΙΜΩΜΕΝΗ ΕΡΓΑΣΙΑ]]","v":{"v":20000,"d":"20,000 €"}},{"$f":"INDEX(Παράμετροι[],MATCH(Λεπτομέρειες[[#This Row],[ΤΥΠΟΣ ΕΡΓΟΥ]],Παράμετροι[ΤΥΠΟΣ ΕΡΓΟΥ],0),MATCH(Λεπτομέρειες[[#Headers],[ΣΥΝΗΓΟΡΟΣ ΥΠΕΡΑΣΠΙΣΗΣ]],Παράμετροι[#Headers],0))*INDEX('ΠΑΡΆΜΕΤΡΟΙ ΈΡΓΟΥ'!$B$12:$H$12,1,MATCH(Λεπτομέρειες[[#Headers],[ΣΥΝΗΓΟΡΟΣ ΥΠΕΡΑΣΠΙΣΗΣ]],Παράμετροι[#Headers],0))*Λεπτομέρειες[[#This Row],[ΕΚΤΙΜΩΜΕΝΗ ΕΡΓΑΣΙΑ]]","v":{"v":0,"d":"0 €"}},{"$f":"INDEX(Παράμετροι[],MATCH(Λεπτομέρειες[[#This Row],[ΤΥΠΟΣ ΕΡΓΟΥ]],Παράμετροι[ΤΥΠΟΣ ΕΡΓΟΥ],0),MATCH(Λεπτομέρειες[[#Headers],[ΔΙΚΗΓΌΡΟΣ ΠΝΕΥΜΑΤΙΚΉΣ ΙΔΙΟΚΤΗΣΊΑΣ]],Παράμετροι[#Headers],0))*INDEX('ΠΑΡΆΜΕΤΡΟΙ ΈΡΓΟΥ'!$B$12:$H$12,1,MATCH(Λεπτομέρειες[[#Headers],[ΔΙΚΗΓΌΡΟΣ ΠΝΕΥΜΑΤΙΚΉΣ ΙΔΙΟΚΤΗΣΊΑΣ]],Παράμετροι[#Headers],0))*Λεπτομέρειες[[#This Row],[ΕΚΤΙΜΩΜΕΝΗ ΕΡΓΑΣΙΑ]]","v":{"v":0,"d":"0 €"}},{"$f":"INDEX(Παράμετροι[],MATCH(Λεπτομέρειες[[#This Row],[ΤΥΠΟΣ ΕΡΓΟΥ]],Παράμετροι[ΤΥΠΟΣ ΕΡΓΟΥ],0),MATCH(Λεπτομέρειες[[#Headers],[ΔΙΚΗΓΌΡΟΣ ΠΤΏΧΕΥΣΕΩΝ]],Παράμετροι[#Headers],0))*INDEX('ΠΑΡΆΜΕΤΡΟΙ ΈΡΓΟΥ'!$B$12:$H$12,1,MATCH(Λεπτομέρειες[[#Headers],[ΔΙΚΗΓΌΡΟΣ ΠΤΏΧΕΥΣΕΩΝ]],Παράμετροι[#Headers],0))*Λεπτομέρειες[[#This Row],[ΕΚΤΙΜΩΜΕΝΗ ΕΡΓΑΣΙΑ]]","v":{"v":0,"d":"0 €"}},{"$f":"INDEX(Παράμετροι[],MATCH(Λεπτομέρειες[[#This Row],[ΤΥΠΟΣ ΕΡΓΟΥ]],Παράμετροι[ΤΥΠΟΣ ΕΡΓΟΥ],0),MATCH(Λεπτομέρειες[[#Headers],[ΔΙΟΙΚΗΤΙΚΟ ΠΡΟΣΩΠΙΚΟ]],Παράμετροι[#Headers],0))*INDEX('ΠΑΡΆΜΕΤΡΟΙ ΈΡΓΟΥ'!$B$12:$H$12,1,MATCH(Λεπτομέρειες[[#Headers],[ΔΙΟΙΚΗΤΙΚΟ ΠΡΟΣΩΠΙΚΟ]],Παράμετροι[#Headers],0))*Λεπτομέρειες[[#This Row],[ΕΚΤΙΜΩΜΕΝΗ ΕΡΓΑΣΙΑ]]","v":{"v":12500,"d":"12,500 €"}},{"$f":"INDEX(Παράμετροι[],MATCH(Λεπτομέρειες[[#This Row],[ΤΥΠΟΣ ΕΡΓΟΥ]],Παράμετροι[ΤΥΠΟΣ ΕΡΓΟΥ],0),MATCH(Λεπτομέρειες[[#Headers],[ΣΥΝΕΡΓΆΤΗΣ ΓΕΝΙΚΩΝ ΥΠΟΘΕΣΕΩΝ]],Παράμετροι[#Headers],0))*INDEX('ΠΑΡΆΜΕΤΡΟΙ ΈΡΓΟΥ'!$B$12:$H$12,1,MATCH(Λεπτομέρειες[[#Headers],[ΣΥΝΕΡΓΆΤΗΣ ΓΕΝΙΚΩΝ ΥΠΟΘΕΣΕΩΝ]],Παράμετροι[#Headers],0))*Λεπτομέρειες[[#This Row],[ΠΡΑΓΜΑΤΙΚΉ ΕΡΓΑΣΊΑ]]","v":{"v":7700,"d":"7,700 €"}},{"$f":"INDEX(Παράμετροι[],MATCH(Λεπτομέρειες[[#This Row],[ΤΥΠΟΣ ΕΡΓΟΥ]],Παράμετροι[ΤΥΠΟΣ ΕΡΓΟΥ],0),MATCH(Λεπτομέρειες[[#Headers],[ΔΙΚΗΓΟΡΟΣ ΕΠΙΧΕΙΡΗΣΕΩΝ]],Παράμετροι[#Headers],0))*INDEX('ΠΑΡΆΜΕΤΡΟΙ ΈΡΓΟΥ'!$B$12:$H$12,1,MATCH(Λεπτομέρειες[[#Headers],[ΔΙΚΗΓΟΡΟΣ ΕΠΙΧΕΙΡΗΣΕΩΝ]],Παράμετροι[#Headers],0))*Λεπτομέρειες[[#This Row],[ΠΡΑΓΜΑΤΙΚΉ ΕΡΓΑΣΊΑ]]","v":{"v":22000,"d":"22,000 €"}},{"$f":"INDEX(Παράμετροι[],MATCH(Λεπτομέρειες[[#This Row],[ΤΥΠΟΣ ΕΡΓΟΥ]],Παράμετροι[ΤΥΠΟΣ ΕΡΓΟΥ],0),MATCH(Λεπτομέρειες[[#Headers],[ΣΥΝΗΓΟΡΟΣ ΥΠΕΡΑΣΠΙΣΗΣ]],Παράμετροι[#Headers],0))*INDEX('ΠΑΡΆΜΕΤΡΟΙ ΈΡΓΟΥ'!$B$12:$H$12,1,MATCH(Λεπτομέρειες[[#Headers],[ΣΥΝΗΓΟΡΟΣ ΥΠΕΡΑΣΠΙΣΗΣ]],Παράμετροι[#Headers],0))*Λεπτομέρειες[[#This Row],[ΠΡΑΓΜΑΤΙΚΉ ΕΡΓΑΣΊΑ]]","v":{"v":0,"d":"0 €"}},{"$f":"INDEX(Παράμετροι[],MATCH(Λεπτομέρειες[[#This Row],[ΤΥΠΟΣ ΕΡΓΟΥ]],Παράμετροι[ΤΥΠΟΣ ΕΡΓΟΥ],0),MATCH(Λεπτομέρειες[[#Headers],[ΔΙΚΗΓΌΡΟΣ ΠΝΕΥΜΑΤΙΚΉΣ ΙΔΙΟΚΤΗΣΊΑΣ]],Παράμετροι[#Headers],0))*INDEX('ΠΑΡΆΜΕΤΡΟΙ ΈΡΓΟΥ'!$B$12:$H$12,1,MATCH(Λεπτομέρειες[[#Headers],[ΔΙΚΗΓΌΡΟΣ ΠΝΕΥΜΑΤΙΚΉΣ ΙΔΙΟΚΤΗΣΊΑΣ]],Παράμετροι[#Headers],0))*Λεπτομέρειες[[#This Row],[ΠΡΑΓΜΑΤΙΚΉ ΕΡΓΑΣΊΑ]]","v":{"v":0,"d":"0 €"}},{"$f":"INDEX(Παράμετροι[],MATCH(Λεπτομέρειες[[#This Row],[ΤΥΠΟΣ ΕΡΓΟΥ]],Παράμετροι[ΤΥΠΟΣ ΕΡΓΟΥ],0),MATCH(Λεπτομέρειες[[#Headers],[ΔΙΚΗΓΌΡΟΣ ΠΤΏΧΕΥΣΕΩΝ]],Παράμετροι[#Headers],0))*INDEX('ΠΑΡΆΜΕΤΡΟΙ ΈΡΓΟΥ'!$B$12:$H$12,1,MATCH(Λεπτομέρειες[[#Headers],[ΔΙΚΗΓΌΡΟΣ ΠΤΏΧΕΥΣΕΩΝ]],Παράμετροι[#Headers],0))*Λεπτομέρειες[[#This Row],[ΠΡΑΓΜΑΤΙΚΉ ΕΡΓΑΣΊΑ]]","v":{"v":0,"d":"0 €"}},{"$f":"INDEX(Παράμετροι[],MATCH(Λεπτομέρειες[[#This Row],[ΤΥΠΟΣ ΕΡΓΟΥ]],Παράμετροι[ΤΥΠΟΣ ΕΡΓΟΥ],0),MATCH(Λεπτομέρειες[[#Headers],[ΔΙΟΙΚΗΤΙΚΟ ΠΡΟΣΩΠΙΚΟ]],Παράμετροι[#Headers],0))*INDEX('ΠΑΡΆΜΕΤΡΟΙ ΈΡΓΟΥ'!$B$12:$H$12,1,MATCH(Λεπτομέρειες[[#Headers],[ΔΙΟΙΚΗΤΙΚΟ ΠΡΟΣΩΠΙΚΟ]],Παράμετροι[#Headers],0))*Λεπτομέρειες[[#This Row],[ΠΡΑΓΜΑΤΙΚΉ ΕΡΓΑΣΊΑ]]","v":{"v":13750,"d":"13,750 €"}}]
[null,"Έργο 2","Εξαγορά επιχείρησης",{"$f":"TODAY()+30","v":"2019-03-17"},{"$f":"TODAY()+100","v":"2019-05-26"},{"$f":"TODAY()+40","v":"2019-03-27"},{"$f":"TODAY()+110","v":"2019-06-05"},400,390,{"$f":"DAYS360(Λεπτομέρειες[[#This Row],[ΕΚΤΙΜΩΜΕΝΗ ΕΝΑΡΞΗ]],Λεπτομέρειες[[#This Row],[ΕΚΤΙΜΏΜΕΝΗ ΛΉΞΗ]],FALSE)","v":69},{"$f":"DAYS360(Λεπτομέρειες[[#This Row],[ΠΡΑΓΜΑΤΙΚΗ ΕΝΑΡΞΗ]],Λεπτομέρειες[[#This Row],[ΠΡΑΓΜΑΤΙΚΉ ΛΉΞΗ]],FALSE)","v":68},{"$f":"INDEX(Παράμετροι[],MATCH(Λεπτομέρειες[[#This Row],[ΤΥΠΟΣ ΕΡΓΟΥ]],Παράμετροι[ΤΥΠΟΣ ΕΡΓΟΥ],0),MATCH(Λεπτομέρειες[[#Headers],[ΣΥΝΕΡΓΆΤΗΣ ΓΕΝΙΚΩΝ ΥΠΟΘΕΣΕΩΝ]],Παράμετροι[#Headers],0))*INDEX('ΠΑΡΆΜΕΤΡΟΙ ΈΡΓΟΥ'!$B$12:$H$12,1,MATCH(Λεπτομέρειες[[#Headers],[ΣΥΝΕΡΓΆΤΗΣ ΓΕΝΙΚΩΝ ΥΠΟΘΕΣΕΩΝ]],Παράμετροι[#Headers],0))*Λεπτομέρειες[[#This Row],[ΕΚΤΙΜΩΜΕΝΗ ΕΡΓΑΣΙΑ]]","v":{"v":14000,"d":"14,000 €"}},{"$f":"INDEX(Παράμετροι[],MATCH(Λεπτομέρειες[[#This Row],[ΤΥΠΟΣ ΕΡΓΟΥ]],Παράμετροι[ΤΥΠΟΣ ΕΡΓΟΥ],0),MATCH(Λεπτομέρειες[[#Headers],[ΔΙΚΗΓΟΡΟΣ ΕΠΙΧΕΙΡΗΣΕΩΝ]],Παράμετροι[#Headers],0))*INDEX('ΠΑΡΆΜΕΤΡΟΙ ΈΡΓΟΥ'!$B$12:$H$12,1,MATCH(Λεπτομέρειες[[#Headers],[ΔΙΚΗΓΟΡΟΣ ΕΠΙΧΕΙΡΗΣΕΩΝ]],Παράμετροι[#Headers],0))*Λεπτομέρειες[[#This Row],[ΕΚΤΙΜΩΜΕΝΗ ΕΡΓΑΣΙΑ]]","v":{"v":40000,"d":"40,000 €"}},{"$f":"INDEX(Παράμετροι[],MATCH(Λεπτομέρειες[[#This Row],[ΤΥΠΟΣ ΕΡΓΟΥ]],Παράμετροι[ΤΥΠΟΣ ΕΡΓΟΥ],0),MATCH(Λεπτομέρειες[[#Headers],[ΣΥΝΗΓΟΡΟΣ ΥΠΕΡΑΣΠΙΣΗΣ]],Παράμετροι[#Headers],0))*INDEX('ΠΑΡΆΜΕΤΡΟΙ ΈΡΓΟΥ'!$B$12:$H$12,1,MATCH(Λεπτομέρειες[[#Headers],[ΣΥΝΗΓΟΡΟΣ ΥΠΕΡΑΣΠΙΣΗΣ]],Παράμετροι[#Headers],0))*Λεπτομέρειες[[#This Row],[ΕΚΤΙΜΩΜΕΝΗ ΕΡΓΑΣΙΑ]]","v":{"v":0,"d":"0 €"}},{"$f":"INDEX(Παράμετροι[],MATCH(Λεπτομέρειες[[#This Row],[ΤΥΠΟΣ ΕΡΓΟΥ]],Παράμετροι[ΤΥΠΟΣ ΕΡΓΟΥ],0),MATCH(Λεπτομέρειες[[#Headers],[ΔΙΚΗΓΌΡΟΣ ΠΝΕΥΜΑΤΙΚΉΣ ΙΔΙΟΚΤΗΣΊΑΣ]],Παράμετροι[#Headers],0))*INDEX('ΠΑΡΆΜΕΤΡΟΙ ΈΡΓΟΥ'!$B$12:$H$12,1,MATCH(Λεπτομέρειες[[#Headers],[ΔΙΚΗΓΌΡΟΣ ΠΝΕΥΜΑΤΙΚΉΣ ΙΔΙΟΚΤΗΣΊΑΣ]],Παράμετροι[#Headers],0))*Λεπτομέρειες[[#This Row],[ΕΚΤΙΜΩΜΕΝΗ ΕΡΓΑΣΙΑ]]","v":{"v":11000,"d":"11,000 €"}},{"$f":"INDEX(Παράμετροι[],MATCH(Λεπτομέρειες[[#This Row],[ΤΥΠΟΣ ΕΡΓΟΥ]],Παράμετροι[ΤΥΠΟΣ ΕΡΓΟΥ],0),MATCH(Λεπτομέρειες[[#Headers],[ΔΙΚΗΓΌΡΟΣ ΠΤΏΧΕΥΣΕΩΝ]],Παράμετροι[#Headers],0))*INDEX('ΠΑΡΆΜΕΤΡΟΙ ΈΡΓΟΥ'!$B$12:$H$12,1,MATCH(Λεπτομέρειες[[#Headers],[ΔΙΚΗΓΌΡΟΣ ΠΤΏΧΕΥΣΕΩΝ]],Παράμετροι[#Headers],0))*Λεπτομέρειες[[#This Row],[ΕΚΤΙΜΩΜΕΝΗ ΕΡΓΑΣΙΑ]]","v":{"v":0,"d":"0 €"}},{"$f":"INDEX(Παράμετροι[],MATCH(Λεπτομέρειες[[#This Row],[ΤΥΠΟΣ ΕΡΓΟΥ]],Παράμετροι[ΤΥΠΟΣ ΕΡΓΟΥ],0),MATCH(Λεπτομέρειες[[#Headers],[ΔΙΟΙΚΗΤΙΚΟ ΠΡΟΣΩΠΙΚΟ]],Παράμετροι[#Headers],0))*INDEX('ΠΑΡΆΜΕΤΡΟΙ ΈΡΓΟΥ'!$B$12:$H$12,1,MATCH(Λεπτομέρειες[[#Headers],[ΔΙΟΙΚΗΤΙΚΟ ΠΡΟΣΩΠΙΚΟ]],Παράμετροι[#Headers],0))*Λεπτομέρειες[[#This Row],[ΕΚΤΙΜΩΜΕΝΗ ΕΡΓΑΣΙΑ]]","v":{"v":20000,"d":"20,000 €"}},{"$f":"INDEX(Παράμετροι[],MATCH(Λεπτομέρειες[[#This Row],[ΤΥΠΟΣ ΕΡΓΟΥ]],Παράμετροι[ΤΥΠΟΣ ΕΡΓΟΥ],0),MATCH(Λεπτομέρειες[[#Headers],[ΣΥΝΕΡΓΆΤΗΣ ΓΕΝΙΚΩΝ ΥΠΟΘΕΣΕΩΝ]],Παράμετροι[#Headers],0))*INDEX('ΠΑΡΆΜΕΤΡΟΙ ΈΡΓΟΥ'!$B$12:$H$12,1,MATCH(Λεπτομέρειες[[#Headers],[ΣΥΝΕΡΓΆΤΗΣ ΓΕΝΙΚΩΝ ΥΠΟΘΕΣΕΩΝ]],Παράμετροι[#Headers],0))*Λεπτομέρειες[[#This Row],[ΠΡΑΓΜΑΤΙΚΉ ΕΡΓΑΣΊΑ]]","v":{"v":13650,"d":"13,650 €"}},{"$f":"INDEX(Παράμετροι[],MATCH(Λεπτομέρειες[[#This Row],[ΤΥΠΟΣ ΕΡΓΟΥ]],Παράμετροι[ΤΥΠΟΣ ΕΡΓΟΥ],0),MATCH(Λεπτομέρειες[[#Headers],[ΔΙΚΗΓΟΡΟΣ ΕΠΙΧΕΙΡΗΣΕΩΝ]],Παράμετροι[#Headers],0))*INDEX('ΠΑΡΆΜΕΤΡΟΙ ΈΡΓΟΥ'!$B$12:$H$12,1,MATCH(Λεπτομέρειες[[#Headers],[ΔΙΚΗΓΟΡΟΣ ΕΠΙΧΕΙΡΗΣΕΩΝ]],Παράμετροι[#Headers],0))*Λεπτομέρειες[[#This Row],[ΠΡΑΓΜΑΤΙΚΉ ΕΡΓΑΣΊΑ]]","v":{"v":39000,"d":"39,000 €"}},{"$f":"INDEX(Παράμετροι[],MATCH(Λεπτομέρειες[[#This Row],[ΤΥΠΟΣ ΕΡΓΟΥ]],Παράμετροι[ΤΥΠΟΣ ΕΡΓΟΥ],0),MATCH(Λεπτομέρειες[[#Headers],[ΣΥΝΗΓΟΡΟΣ ΥΠΕΡΑΣΠΙΣΗΣ]],Παράμετροι[#Headers],0))*INDEX('ΠΑΡΆΜΕΤΡΟΙ ΈΡΓΟΥ'!$B$12:$H$12,1,MATCH(Λεπτομέρειες[[#Headers],[ΣΥΝΗΓΟΡΟΣ ΥΠΕΡΑΣΠΙΣΗΣ]],Παράμετροι[#Headers],0))*Λεπτομέρειες[[#This Row],[ΠΡΑΓΜΑΤΙΚΉ ΕΡΓΑΣΊΑ]]","v":{"v":0,"d":"0 €"}},{"$f":"INDEX(Παράμετροι[],MATCH(Λεπτομέρειες[[#This Row],[ΤΥΠΟΣ ΕΡΓΟΥ]],Παράμετροι[ΤΥΠΟΣ ΕΡΓΟΥ],0),MATCH(Λεπτομέρειες[[#Headers],[ΔΙΚΗΓΌΡΟΣ ΠΝΕΥΜΑΤΙΚΉΣ ΙΔΙΟΚΤΗΣΊΑΣ]],Παράμετροι[#Headers],0))*INDEX('ΠΑΡΆΜΕΤΡΟΙ ΈΡΓΟΥ'!$B$12:$H$12,1,MATCH(Λεπτομέρειες[[#Headers],[ΔΙΚΗΓΌΡΟΣ ΠΝΕΥΜΑΤΙΚΉΣ ΙΔΙΟΚΤΗΣΊΑΣ]],Παράμετροι[#Headers],0))*Λεπτομέρειες[[#This Row],[ΠΡΑΓΜΑΤΙΚΉ ΕΡΓΑΣΊΑ]]","v":{"v":10725,"d":"10,725 €"}},{"$f":"INDEX(Παράμετροι[],MATCH(Λεπτομέρειες[[#This Row],[ΤΥΠΟΣ ΕΡΓΟΥ]],Παράμετροι[ΤΥΠΟΣ ΕΡΓΟΥ],0),MATCH(Λεπτομέρειες[[#Headers],[ΔΙΚΗΓΌΡΟΣ ΠΤΏΧΕΥΣΕΩΝ]],Παράμετροι[#Headers],0))*INDEX('ΠΑΡΆΜΕΤΡΟΙ ΈΡΓΟΥ'!$B$12:$H$12,1,MATCH(Λεπτομέρειες[[#Headers],[ΔΙΚΗΓΌΡΟΣ ΠΤΏΧΕΥΣΕΩΝ]],Παράμετροι[#Headers],0))*Λεπτομέρειες[[#This Row],[ΠΡΑΓΜΑΤΙΚΉ ΕΡΓΑΣΊΑ]]","v":{"v":0,"d":"0 €"}},{"$f":"INDEX(Παράμετροι[],MATCH(Λεπτομέρειες[[#This Row],[ΤΥΠΟΣ ΕΡΓΟΥ]],Παράμετροι[ΤΥΠΟΣ ΕΡΓΟΥ],0),MATCH(Λεπτομέρειες[[#Headers],[ΔΙΟΙΚΗΤΙΚΟ ΠΡΟΣΩΠΙΚΟ]],Παράμετροι[#Headers],0))*INDEX('ΠΑΡΆΜΕΤΡΟΙ ΈΡΓΟΥ'!$B$12:$H$12,1,MATCH(Λεπτομέρειες[[#Headers],[ΔΙΟΙΚΗΤΙΚΟ ΠΡΟΣΩΠΙΚΟ]],Παράμετροι[#Headers],0))*Λεπτομέρειες[[#This Row],[ΠΡΑΓΜΑΤΙΚΉ ΕΡΓΑΣΊΑ]]","v":{"v":19500,"d":"19,500 €"}}]
[null,"Έργο 3","Νομική προστασία από ευθύνη προϊόντος",{"$f":"TODAY()+150","v":"2019-07-15"},{"$f":"TODAY()+150","v":"2019-07-15"},{"$f":"TODAY()+150","v":"2019-07-15"},{"$f":"TODAY()+170","v":"2019-08-04"},500,500,{"$f":"DAYS360(Λεπτομέρειες[[#This Row],[ΕΚΤΙΜΩΜΕΝΗ ΕΝΑΡΞΗ]],Λεπτομέρειες[[#This Row],[ΕΚΤΙΜΏΜΕΝΗ ΛΉΞΗ]],FALSE)","v":0},{"$f":"DAYS360(Λεπτομέρειες[[#This Row],[ΠΡΑΓΜΑΤΙΚΗ ΕΝΑΡΞΗ]],Λεπτομέρειες[[#This Row],[ΠΡΑΓΜΑΤΙΚΉ ΛΉΞΗ]],FALSE)","v":19},{"$f":"INDEX(Παράμετροι[],MATCH(Λεπτομέρειες[[#This Row],[ΤΥΠΟΣ ΕΡΓΟΥ]],Παράμετροι[ΤΥΠΟΣ ΕΡΓΟΥ],0),MATCH(Λεπτομέρειες[[#Headers],[ΣΥΝΕΡΓΆΤΗΣ ΓΕΝΙΚΩΝ ΥΠΟΘΕΣΕΩΝ]],Παράμετροι[#Headers],0))*INDEX('ΠΑΡΆΜΕΤΡΟΙ ΈΡΓΟΥ'!$B$12:$H$12,1,MATCH(Λεπτομέρειες[[#Headers],[ΣΥΝΕΡΓΆΤΗΣ ΓΕΝΙΚΩΝ ΥΠΟΘΕΣΕΩΝ]],Παράμετροι[#Headers],0))*Λεπτομέρειες[[#This Row],[ΕΚΤΙΜΩΜΕΝΗ ΕΡΓΑΣΙΑ]]","v":{"v":35000,"d":"35,000 €"}},{"$f":"INDEX(Παράμετροι[],MATCH(Λεπτομέρειες[[#This Row],[ΤΥΠΟΣ ΕΡΓΟΥ]],Παράμετροι[ΤΥΠΟΣ ΕΡΓΟΥ],0),MATCH(Λεπτομέρειες[[#Headers],[ΔΙΚΗΓΟΡΟΣ ΕΠΙΧΕΙΡΗΣΕΩΝ]],Παράμετροι[#Headers],0))*INDEX('ΠΑΡΆΜΕΤΡΟΙ ΈΡΓΟΥ'!$B$12:$H$12,1,MATCH(Λεπτομέρειες[[#Headers],[ΔΙΚΗΓΟΡΟΣ ΕΠΙΧΕΙΡΗΣΕΩΝ]],Παράμετροι[#Headers],0))*Λεπτομέρειες[[#This Row],[ΕΚΤΙΜΩΜΕΝΗ ΕΡΓΑΣΙΑ]]","v":{"v":0,"d":"0 €"}},{"$f":"INDEX(Παράμετροι[],MATCH(Λεπτομέρειες[[#This Row],[ΤΥΠΟΣ ΕΡΓΟΥ]],Παράμετροι[ΤΥΠΟΣ ΕΡΓΟΥ],0),MATCH(Λεπτομέρειες[[#Headers],[ΣΥΝΗΓΟΡΟΣ ΥΠΕΡΑΣΠΙΣΗΣ]],Παράμετροι[#Headers],0))*INDEX('ΠΑΡΆΜΕΤΡΟΙ ΈΡΓΟΥ'!$B$12:$H$12,1,MATCH(Λεπτομέρειες[[#Headers],[ΣΥΝΗΓΟΡΟΣ ΥΠΕΡΑΣΠΙΣΗΣ]],Παράμετροι[#Headers],0))*Λεπτομέρειες[[#This Row],[ΕΚΤΙΜΩΜΕΝΗ ΕΡΓΑΣΙΑ]]","v":{"v":75000,"d":"75,000 €"}},{"$f":"INDEX(Παράμετροι[],MATCH(Λεπτομέρειες[[#This Row],[ΤΥΠΟΣ ΕΡΓΟΥ]],Παράμετροι[ΤΥΠΟΣ ΕΡΓΟΥ],0),MATCH(Λεπτομέρειες[[#Headers],[ΔΙΚΗΓΌΡΟΣ ΠΝΕΥΜΑΤΙΚΉΣ ΙΔΙΟΚΤΗΣΊΑΣ]],Παράμετροι[#Headers],0))*INDEX('ΠΑΡΆΜΕΤΡΟΙ ΈΡΓΟΥ'!$B$12:$H$12,1,MATCH(Λεπτομέρειες[[#Headers],[ΔΙΚΗΓΌΡΟΣ ΠΝΕΥΜΑΤΙΚΉΣ ΙΔΙΟΚΤΗΣΊΑΣ]],Παράμετροι[#Headers],0))*Λεπτομέρειες[[#This Row],[ΕΚΤΙΜΩΜΕΝΗ ΕΡΓΑΣΙΑ]]","v":{"v":0,"d":"0 €"}},{"$f":"INDEX(Παράμετροι[],MATCH(Λεπτομέρειες[[#This Row],[ΤΥΠΟΣ ΕΡΓΟΥ]],Παράμετροι[ΤΥΠΟΣ ΕΡΓΟΥ],0),MATCH(Λεπτομέρειες[[#Headers],[ΔΙΚΗΓΌΡΟΣ ΠΤΏΧΕΥΣΕΩΝ]],Παράμετροι[#Headers],0))*INDEX('ΠΑΡΆΜΕΤΡΟΙ ΈΡΓΟΥ'!$B$12:$H$12,1,MATCH(Λεπτομέρειες[[#Headers],[ΔΙΚΗΓΌΡΟΣ ΠΤΏΧΕΥΣΕΩΝ]],Παράμετροι[#Headers],0))*Λεπτομέρειες[[#This Row],[ΕΚΤΙΜΩΜΕΝΗ ΕΡΓΑΣΙΑ]]","v":{"v":0,"d":"0 €"}},{"$f":"INDEX(Παράμετροι[],MATCH(Λεπτομέρειες[[#This Row],[ΤΥΠΟΣ ΕΡΓΟΥ]],Παράμετροι[ΤΥΠΟΣ ΕΡΓΟΥ],0),MATCH(Λεπτομέρειες[[#Headers],[ΔΙΟΙΚΗΤΙΚΟ ΠΡΟΣΩΠΙΚΟ]],Παράμετροι[#Headers],0))*INDEX('ΠΑΡΆΜΕΤΡΟΙ ΈΡΓΟΥ'!$B$12:$H$12,1,MATCH(Λεπτομέρειες[[#Headers],[ΔΙΟΙΚΗΤΙΚΟ ΠΡΟΣΩΠΙΚΟ]],Παράμετροι[#Headers],0))*Λεπτομέρειες[[#This Row],[ΕΚΤΙΜΩΜΕΝΗ ΕΡΓΑΣΙΑ]]","v":{"v":18750,"d":"18,750 €"}},{"$f":"INDEX(Παράμετροι[],MATCH(Λεπτομέρειες[[#This Row],[ΤΥΠΟΣ ΕΡΓΟΥ]],Παράμετροι[ΤΥΠΟΣ ΕΡΓΟΥ],0),MATCH(Λεπτομέρειες[[#Headers],[ΣΥΝΕΡΓΆΤΗΣ ΓΕΝΙΚΩΝ ΥΠΟΘΕΣΕΩΝ]],Παράμετροι[#Headers],0))*INDEX('ΠΑΡΆΜΕΤΡΟΙ ΈΡΓΟΥ'!$B$12:$H$12,1,MATCH(Λεπτομέρειες[[#Headers],[ΣΥΝΕΡΓΆΤΗΣ ΓΕΝΙΚΩΝ ΥΠΟΘΕΣΕΩΝ]],Παράμετροι[#Headers],0))*Λεπτομέρειες[[#This Row],[ΠΡΑΓΜΑΤΙΚΉ ΕΡΓΑΣΊΑ]]","v":{"v":35000,"d":"35,000 €"}},{"$f":"INDEX(Παράμετροι[],MATCH(Λεπτομέρειες[[#This Row],[ΤΥΠΟΣ ΕΡΓΟΥ]],Παράμετροι[ΤΥΠΟΣ ΕΡΓΟΥ],0),MATCH(Λεπτομέρειες[[#Headers],[ΔΙΚΗΓΟΡΟΣ ΕΠΙΧΕΙΡΗΣΕΩΝ]],Παράμετροι[#Headers],0))*INDEX('ΠΑΡΆΜΕΤΡΟΙ ΈΡΓΟΥ'!$B$12:$H$12,1,MATCH(Λεπτομέρειες[[#Headers],[ΔΙΚΗΓΟΡΟΣ ΕΠΙΧΕΙΡΗΣΕΩΝ]],Παράμετροι[#Headers],0))*Λεπτομέρειες[[#This Row],[ΠΡΑΓΜΑΤΙΚΉ ΕΡΓΑΣΊΑ]]","v":{"v":0,"d":"0 €"}},{"$f":"INDEX(Παράμετροι[],MATCH(Λεπτομέρειες[[#This Row],[ΤΥΠΟΣ ΕΡΓΟΥ]],Παράμετροι[ΤΥΠΟΣ ΕΡΓΟΥ],0),MATCH(Λεπτομέρειες[[#Headers],[ΣΥΝΗΓΟΡΟΣ ΥΠΕΡΑΣΠΙΣΗΣ]],Παράμετροι[#Headers],0))*INDEX('ΠΑΡΆΜΕΤΡΟΙ ΈΡΓΟΥ'!$B$12:$H$12,1,MATCH(Λεπτομέρειες[[#Headers],[ΣΥΝΗΓΟΡΟΣ ΥΠΕΡΑΣΠΙΣΗΣ]],Παράμετροι[#Headers],0))*Λεπτομέρειες[[#This Row],[ΠΡΑΓΜΑΤΙΚΉ ΕΡΓΑΣΊΑ]]","v":{"v":75000,"d":"75,000 €"}},{"$f":"INDEX(Παράμετροι[],MATCH(Λεπτομέρειες[[#This Row],[ΤΥΠΟΣ ΕΡΓΟΥ]],Παράμετροι[ΤΥΠΟΣ ΕΡΓΟΥ],0),MATCH(Λεπτομέρειες[[#Headers],[ΔΙΚΗΓΌΡΟΣ ΠΝΕΥΜΑΤΙΚΉΣ ΙΔΙΟΚΤΗΣΊΑΣ]],Παράμετροι[#Headers],0))*INDEX('ΠΑΡΆΜΕΤΡΟΙ ΈΡΓΟΥ'!$B$12:$H$12,1,MATCH(Λεπτομέρειες[[#Headers],[ΔΙΚΗΓΌΡΟΣ ΠΝΕΥΜΑΤΙΚΉΣ ΙΔΙΟΚΤΗΣΊΑΣ]],Παράμετροι[#Headers],0))*Λεπτομέρειες[[#This Row],[ΠΡΑΓΜΑΤΙΚΉ ΕΡΓΑΣΊΑ]]","v":{"v":0,"d":"0 €"}},{"$f":"INDEX(Παράμετροι[],MATCH(Λεπτομέρειες[[#This Row],[ΤΥΠΟΣ ΕΡΓΟΥ]],Παράμετροι[ΤΥΠΟΣ ΕΡΓΟΥ],0),MATCH(Λεπτομέρειες[[#Headers],[ΔΙΚΗΓΌΡΟΣ ΠΤΏΧΕΥΣΕΩΝ]],Παράμετροι[#Headers],0))*INDEX('ΠΑΡΆΜΕΤΡΟΙ ΈΡΓΟΥ'!$B$12:$H$12,1,MATCH(Λεπτομέρειες[[#Headers],[ΔΙΚΗΓΌΡΟΣ ΠΤΏΧΕΥΣΕΩΝ]],Παράμετροι[#Headers],0))*Λεπτομέρειες[[#This Row],[ΠΡΑΓΜΑΤΙΚΉ ΕΡΓΑΣΊΑ]]","v":{"v":0,"d":"0 €"}},{"$f":"INDEX(Παράμετροι[],MATCH(Λεπτομέρειες[[#This Row],[ΤΥΠΟΣ ΕΡΓΟΥ]],Παράμετροι[ΤΥΠΟΣ ΕΡΓΟΥ],0),MATCH(Λεπτομέρειες[[#Headers],[ΔΙΟΙΚΗΤΙΚΟ ΠΡΟΣΩΠΙΚΟ]],Παράμετροι[#Headers],0))*INDEX('ΠΑΡΆΜΕΤΡΟΙ ΈΡΓΟΥ'!$B$12:$H$12,1,MATCH(Λεπτομέρειες[[#Headers],[ΔΙΟΙΚΗΤΙΚΟ ΠΡΟΣΩΠΙΚΟ]],Παράμετροι[#Headers],0))*Λεπτομέρειες[[#This Row],[ΠΡΑΓΜΑΤΙΚΉ ΕΡΓΑΣΊΑ]]","v":{"v":18750,"d":"18,750 €"}}]
[null,"Έργο 4","Αίτηση ευρεσιτεχνίας",{"$f":"TODAY()+200","v":"2019-09-03"},{"$f":"TODAY()+230","v":"2019-10-03"},{"$f":"TODAY()+230","v":"2019-10-03"},{"$f":"TODAY()+230","v":"2019-10-03"},150,145,{"$f":"DAYS360(Λεπτομέρειες[[#This Row],[ΕΚΤΙΜΩΜΕΝΗ ΕΝΑΡΞΗ]],Λεπτομέρειες[[#This Row],[ΕΚΤΙΜΏΜΕΝΗ ΛΉΞΗ]],FALSE)","v":30},{"$f":"DAYS360(Λεπτομέρειες[[#This Row],[ΠΡΑΓΜΑΤΙΚΗ ΕΝΑΡΞΗ]],Λεπτομέρειες[[#This Row],[ΠΡΑΓΜΑΤΙΚΉ ΛΉΞΗ]],FALSE)","v":0},{"$f":"INDEX(Παράμετροι[],MATCH(Λεπτομέρειες[[#This Row],[ΤΥΠΟΣ ΕΡΓΟΥ]],Παράμετροι[ΤΥΠΟΣ ΕΡΓΟΥ],0),MATCH(Λεπτομέρειες[[#Headers],[ΣΥΝΕΡΓΆΤΗΣ ΓΕΝΙΚΩΝ ΥΠΟΘΕΣΕΩΝ]],Παράμετροι[#Headers],0))*INDEX('ΠΑΡΆΜΕΤΡΟΙ ΈΡΓΟΥ'!$B$12:$H$12,1,MATCH(Λεπτομέρειες[[#Headers],[ΣΥΝΕΡΓΆΤΗΣ ΓΕΝΙΚΩΝ ΥΠΟΘΕΣΕΩΝ]],Παράμετροι[#Headers],0))*Λεπτομέρειες[[#This Row],[ΕΚΤΙΜΩΜΕΝΗ ΕΡΓΑΣΙΑ]]","v":{"v":5250,"d":"5,250 €"}},{"$f":"INDEX(Παράμετροι[],MATCH(Λεπτομέρειες[[#This Row],[ΤΥΠΟΣ ΕΡΓΟΥ]],Παράμετροι[ΤΥΠΟΣ ΕΡΓΟΥ],0),MATCH(Λεπτομέρειες[[#Headers],[ΔΙΚΗΓΟΡΟΣ ΕΠΙΧΕΙΡΗΣΕΩΝ]],Παράμετροι[#Headers],0))*INDEX('ΠΑΡΆΜΕΤΡΟΙ ΈΡΓΟΥ'!$B$12:$H$12,1,MATCH(Λεπτομέρειες[[#Headers],[ΔΙΚΗΓΟΡΟΣ ΕΠΙΧΕΙΡΗΣΕΩΝ]],Παράμετροι[#Headers],0))*Λεπτομέρειες[[#This Row],[ΕΚΤΙΜΩΜΕΝΗ ΕΡΓΑΣΙΑ]]","v":{"v":0,"d":"0 €"}},{"$f":"INDEX(Παράμετροι[],MATCH(Λεπτομέρειες[[#This Row],[ΤΥΠΟΣ ΕΡΓΟΥ]],Παράμετροι[ΤΥΠΟΣ ΕΡΓΟΥ],0),MATCH(Λεπτομέρειες[[#Headers],[ΣΥΝΗΓΟΡΟΣ ΥΠΕΡΑΣΠΙΣΗΣ]],Παράμετροι[#Headers],0))*INDEX('ΠΑΡΆΜΕΤΡΟΙ ΈΡΓΟΥ'!$B$12:$H$12,1,MATCH(Λεπτομέρειες[[#Headers],[ΣΥΝΗΓΟΡΟΣ ΥΠΕΡΑΣΠΙΣΗΣ]],Παράμετροι[#Headers],0))*Λεπτομέρειες[[#This Row],[ΕΚΤΙΜΩΜΕΝΗ ΕΡΓΑΣΙΑ]]","v":{"v":0,"d":"0 €"}},{"$f":"INDEX(Παράμετροι[],MATCH(Λεπτομέρειες[[#This Row],[ΤΥΠΟΣ ΕΡΓΟΥ]],Παράμετροι[ΤΥΠΟΣ ΕΡΓΟΥ],0),MATCH(Λεπτομέρειες[[#Headers],[ΔΙΚΗΓΌΡΟΣ ΠΝΕΥΜΑΤΙΚΉΣ ΙΔΙΟΚΤΗΣΊΑΣ]],Παράμετροι[#Headers],0))*INDEX('ΠΑΡΆΜΕΤΡΟΙ ΈΡΓΟΥ'!$B$12:$H$12,1,MATCH(Λεπτομέρειες[[#Headers],[ΔΙΚΗΓΌΡΟΣ ΠΝΕΥΜΑΤΙΚΉΣ ΙΔΙΟΚΤΗΣΊΑΣ]],Παράμετροι[#Headers],0))*Λεπτομέρειες[[#This Row],[ΕΚΤΙΜΩΜΕΝΗ ΕΡΓΑΣΙΑ]]","v":{"v":24750,"d":"24,750 €"}},{"$f":"INDEX(Παράμετροι[],MATCH(Λεπτομέρειες[[#This Row],[ΤΥΠΟΣ ΕΡΓΟΥ]],Παράμετροι[ΤΥΠΟΣ ΕΡΓΟΥ],0),MATCH(Λεπτομέρειες[[#Headers],[ΔΙΚΗΓΌΡΟΣ ΠΤΏΧΕΥΣΕΩΝ]],Παράμετροι[#Headers],0))*INDEX('ΠΑΡΆΜΕΤΡΟΙ ΈΡΓΟΥ'!$B$12:$H$12,1,MATCH(Λεπτομέρειες[[#Headers],[ΔΙΚΗΓΌΡΟΣ ΠΤΏΧΕΥΣΕΩΝ]],Παράμετροι[#Headers],0))*Λεπτομέρειες[[#This Row],[ΕΚΤΙΜΩΜΕΝΗ ΕΡΓΑΣΙΑ]]","v":{"v":0,"d":"0 €"}},{"$f":"INDEX(Παράμετροι[],MATCH(Λεπτομέρειες[[#This Row],[ΤΥΠΟΣ ΕΡΓΟΥ]],Παράμετροι[ΤΥΠΟΣ ΕΡΓΟΥ],0),MATCH(Λεπτομέρειες[[#Headers],[ΔΙΟΙΚΗΤΙΚΟ ΠΡΟΣΩΠΙΚΟ]],Παράμετροι[#Headers],0))*INDEX('ΠΑΡΆΜΕΤΡΟΙ ΈΡΓΟΥ'!$B$12:$H$12,1,MATCH(Λεπτομέρειες[[#Headers],[ΔΙΟΙΚΗΤΙΚΟ ΠΡΟΣΩΠΙΚΟ]],Παράμετροι[#Headers],0))*Λεπτομέρειες[[#This Row],[ΕΚΤΙΜΩΜΕΝΗ ΕΡΓΑΣΙΑ]]","v":{"v":5625,"d":"5,625 €"}},{"$f":"INDEX(Παράμετροι[],MATCH(Λεπτομέρειες[[#This Row],[ΤΥΠΟΣ ΕΡΓΟΥ]],Παράμετροι[ΤΥΠΟΣ ΕΡΓΟΥ],0),MATCH(Λεπτομέρειες[[#Headers],[ΣΥΝΕΡΓΆΤΗΣ ΓΕΝΙΚΩΝ ΥΠΟΘΕΣΕΩΝ]],Παράμετροι[#Headers],0))*INDEX('ΠΑΡΆΜΕΤΡΟΙ ΈΡΓΟΥ'!$B$12:$H$12,1,MATCH(Λεπτομέρειες[[#Headers],[ΣΥΝΕΡΓΆΤΗΣ ΓΕΝΙΚΩΝ ΥΠΟΘΕΣΕΩΝ]],Παράμετροι[#Headers],0))*Λεπτομέρειες[[#This Row],[ΠΡΑΓΜΑΤΙΚΉ ΕΡΓΑΣΊΑ]]","v":{"v":5075,"d":"5,075 €"}},{"$f":"INDEX(Παράμετροι[],MATCH(Λεπτομέρειες[[#This Row],[ΤΥΠΟΣ ΕΡΓΟΥ]],Παράμετροι[ΤΥΠΟΣ ΕΡΓΟΥ],0),MATCH(Λεπτομέρειες[[#Headers],[ΔΙΚΗΓΟΡΟΣ ΕΠΙΧΕΙΡΗΣΕΩΝ]],Παράμετροι[#Headers],0))*INDEX('ΠΑΡΆΜΕΤΡΟΙ ΈΡΓΟΥ'!$B$12:$H$12,1,MATCH(Λεπτομέρειες[[#Headers],[ΔΙΚΗΓΟΡΟΣ ΕΠΙΧΕΙΡΗΣΕΩΝ]],Παράμετροι[#Headers],0))*Λεπτομέρειες[[#This Row],[ΠΡΑΓΜΑΤΙΚΉ ΕΡΓΑΣΊΑ]]","v":{"v":0,"d":"0 €"}},{"$f":"INDEX(Παράμετροι[],MATCH(Λεπτομέρειες[[#This Row],[ΤΥΠΟΣ ΕΡΓΟΥ]],Παράμετροι[ΤΥΠΟΣ ΕΡΓΟΥ],0),MATCH(Λεπτομέρειες[[#Headers],[ΣΥΝΗΓΟΡΟΣ ΥΠΕΡΑΣΠΙΣΗΣ]],Παράμετροι[#Headers],0))*INDEX('ΠΑΡΆΜΕΤΡΟΙ ΈΡΓΟΥ'!$B$12:$H$12,1,MATCH(Λεπτομέρειες[[#Headers],[ΣΥΝΗΓΟΡΟΣ ΥΠΕΡΑΣΠΙΣΗΣ]],Παράμετροι[#Headers],0))*Λεπτομέρειες[[#This Row],[ΠΡΑΓΜΑΤΙΚΉ ΕΡΓΑΣΊΑ]]","v":{"v":0,"d":"0 €"}},{"$f":"INDEX(Παράμετροι[],MATCH(Λεπτομέρειες[[#This Row],[ΤΥΠΟΣ ΕΡΓΟΥ]],Παράμετροι[ΤΥΠΟΣ ΕΡΓΟΥ],0),MATCH(Λεπτομέρειες[[#Headers],[ΔΙΚΗΓΌΡΟΣ ΠΝΕΥΜΑΤΙΚΉΣ ΙΔΙΟΚΤΗΣΊΑΣ]],Παράμετροι[#Headers],0))*INDEX('ΠΑΡΆΜΕΤΡΟΙ ΈΡΓΟΥ'!$B$12:$H$12,1,MATCH(Λεπτομέρειες[[#Headers],[ΔΙΚΗΓΌΡΟΣ ΠΝΕΥΜΑΤΙΚΉΣ ΙΔΙΟΚΤΗΣΊΑΣ]],Παράμετροι[#Headers],0))*Λεπτομέρειες[[#This Row],[ΠΡΑΓΜΑΤΙΚΉ ΕΡΓΑΣΊΑ]]","v":{"v":23925,"d":"23,925 €"}},{"$f":"INDEX(Παράμετροι[],MATCH(Λεπτομέρειες[[#This Row],[ΤΥΠΟΣ ΕΡΓΟΥ]],Παράμετροι[ΤΥΠΟΣ ΕΡΓΟΥ],0),MATCH(Λεπτομέρειες[[#Headers],[ΔΙΚΗΓΌΡΟΣ ΠΤΏΧΕΥΣΕΩΝ]],Παράμετροι[#Headers],0))*INDEX('ΠΑΡΆΜΕΤΡΟΙ ΈΡΓΟΥ'!$B$12:$H$12,1,MATCH(Λεπτομέρειες[[#Headers],[ΔΙΚΗΓΌΡΟΣ ΠΤΏΧΕΥΣΕΩΝ]],Παράμετροι[#Headers],0))*Λεπτομέρειες[[#This Row],[ΠΡΑΓΜΑΤΙΚΉ ΕΡΓΑΣΊΑ]]","v":{"v":0,"d":"0 €"}},{"$f":"INDEX(Παράμετροι[],MATCH(Λεπτομέρειες[[#This Row],[ΤΥΠΟΣ ΕΡΓΟΥ]],Παράμετροι[ΤΥΠΟΣ ΕΡΓΟΥ],0),MATCH(Λεπτομέρειες[[#Headers],[ΔΙΟΙΚΗΤΙΚΟ ΠΡΟΣΩΠΙΚΟ]],Παράμετροι[#Headers],0))*INDEX('ΠΑΡΆΜΕΤΡΟΙ ΈΡΓΟΥ'!$B$12:$H$12,1,MATCH(Λεπτομέρειες[[#Headers],[ΔΙΟΙΚΗΤΙΚΟ ΠΡΟΣΩΠΙΚΟ]],Παράμετροι[#Headers],0))*Λεπτομέρειες[[#This Row],[ΠΡΑΓΜΑΤΙΚΉ ΕΡΓΑΣΊΑ]]","v":{"v":5437.5,"d":"5,438 €"}}]
[null,"Έργο 5","Αγωγή υπαλλήλου",{"$f":"TODAY()+220","v":"2019-09-23"},{"$f":"TODAY()+250","v":"2019-10-23"},{"$f":"TODAY()+230","v":"2019-10-03"},{"$f":"TODAY()+259","v":"2019-11-01"},250,255,{"$f":"DAYS360(Λεπτομέρειες[[#This Row],[ΕΚΤΙΜΩΜΕΝΗ ΕΝΑΡΞΗ]],Λεπτομέρειες[[#This Row],[ΕΚΤΙΜΏΜΕΝΗ ΛΉΞΗ]],FALSE)","v":30},{"$f":"DAYS360(Λεπτομέρειες[[#This Row],[ΠΡΑΓΜΑΤΙΚΗ ΕΝΑΡΞΗ]],Λεπτομέρειες[[#This Row],[ΠΡΑΓΜΑΤΙΚΉ ΛΉΞΗ]],FALSE)","v":28},{"$f":"INDEX(Παράμετροι[],MATCH(Λεπτομέρειες[[#This Row],[ΤΥΠΟΣ ΕΡΓΟΥ]],Παράμετροι[ΤΥΠΟΣ ΕΡΓΟΥ],0),MATCH(Λεπτομέρειες[[#Headers],[ΣΥΝΕΡΓΆΤΗΣ ΓΕΝΙΚΩΝ ΥΠΟΘΕΣΕΩΝ]],Παράμετροι[#Headers],0))*INDEX('ΠΑΡΆΜΕΤΡΟΙ ΈΡΓΟΥ'!$B$12:$H$12,1,MATCH(Λεπτομέρειες[[#Headers],[ΣΥΝΕΡΓΆΤΗΣ ΓΕΝΙΚΩΝ ΥΠΟΘΕΣΕΩΝ]],Παράμετροι[#Headers],0))*Λεπτομέρειες[[#This Row],[ΕΚΤΙΜΩΜΕΝΗ ΕΡΓΑΣΙΑ]]","v":{"v":17500,"d":"17,500 €"}},{"$f":"INDEX(Παράμετροι[],MATCH(Λεπτομέρειες[[#This Row],[ΤΥΠΟΣ ΕΡΓΟΥ]],Παράμετροι[ΤΥΠΟΣ ΕΡΓΟΥ],0),MATCH(Λεπτομέρειες[[#Headers],[ΔΙΚΗΓΟΡΟΣ ΕΠΙΧΕΙΡΗΣΕΩΝ]],Παράμετροι[#Headers],0))*INDEX('ΠΑΡΆΜΕΤΡΟΙ ΈΡΓΟΥ'!$B$12:$H$12,1,MATCH(Λεπτομέρειες[[#Headers],[ΔΙΚΗΓΟΡΟΣ ΕΠΙΧΕΙΡΗΣΕΩΝ]],Παράμετροι[#Headers],0))*Λεπτομέρειες[[#This Row],[ΕΚΤΙΜΩΜΕΝΗ ΕΡΓΑΣΙΑ]]","v":{"v":6250,"d":"6,250 €"}},{"$f":"INDEX(Παράμετροι[],MATCH(Λεπτομέρειες[[#This Row],[ΤΥΠΟΣ ΕΡΓΟΥ]],Παράμετροι[ΤΥΠΟΣ ΕΡΓΟΥ],0),MATCH(Λεπτομέρειες[[#Headers],[ΣΥΝΗΓΟΡΟΣ ΥΠΕΡΑΣΠΙΣΗΣ]],Παράμετροι[#Headers],0))*INDEX('ΠΑΡΆΜΕΤΡΟΙ ΈΡΓΟΥ'!$B$12:$H$12,1,MATCH(Λεπτομέρειες[[#Headers],[ΣΥΝΗΓΟΡΟΣ ΥΠΕΡΑΣΠΙΣΗΣ]],Παράμετροι[#Headers],0))*Λεπτομέρειες[[#This Row],[ΕΚΤΙΜΩΜΕΝΗ ΕΡΓΑΣΙΑ]]","v":{"v":30000,"d":"30,000 €"}},{"$f":"INDEX(Παράμετροι[],MATCH(Λεπτομέρειες[[#This Row],[ΤΥΠΟΣ ΕΡΓΟΥ]],Παράμετροι[ΤΥΠΟΣ ΕΡΓΟΥ],0),MATCH(Λεπτομέρειες[[#Headers],[ΔΙΚΗΓΌΡΟΣ ΠΝΕΥΜΑΤΙΚΉΣ ΙΔΙΟΚΤΗΣΊΑΣ]],Παράμετροι[#Headers],0))*INDEX('ΠΑΡΆΜΕΤΡΟΙ ΈΡΓΟΥ'!$B$12:$H$12,1,MATCH(Λεπτομέρειες[[#Headers],[ΔΙΚΗΓΌΡΟΣ ΠΝΕΥΜΑΤΙΚΉΣ ΙΔΙΟΚΤΗΣΊΑΣ]],Παράμετροι[#Headers],0))*Λεπτομέρειες[[#This Row],[ΕΚΤΙΜΩΜΕΝΗ ΕΡΓΑΣΙΑ]]","v":{"v":0,"d":"0 €"}},{"$f":"INDEX(Παράμετροι[],MATCH(Λεπτομέρειες[[#This Row],[ΤΥΠΟΣ ΕΡΓΟΥ]],Παράμετροι[ΤΥΠΟΣ ΕΡΓΟΥ],0),MATCH(Λεπτομέρειες[[#Headers],[ΔΙΚΗΓΌΡΟΣ ΠΤΏΧΕΥΣΕΩΝ]],Παράμετροι[#Headers],0))*INDEX('ΠΑΡΆΜΕΤΡΟΙ ΈΡΓΟΥ'!$B$12:$H$12,1,MATCH(Λεπτομέρειες[[#Headers],[ΔΙΚΗΓΌΡΟΣ ΠΤΏΧΕΥΣΕΩΝ]],Παράμετροι[#Headers],0))*Λεπτομέρειες[[#This Row],[ΕΚΤΙΜΩΜΕΝΗ ΕΡΓΑΣΙΑ]]","v":{"v":0,"d":"0 €"}},{"$f":"INDEX(Παράμετροι[],MATCH(Λεπτομέρειες[[#This Row],[ΤΥΠΟΣ ΕΡΓΟΥ]],Παράμετροι[ΤΥΠΟΣ ΕΡΓΟΥ],0),MATCH(Λεπτομέρειες[[#Headers],[ΔΙΟΙΚΗΤΙΚΟ ΠΡΟΣΩΠΙΚΟ]],Παράμετροι[#Headers],0))*INDEX('ΠΑΡΆΜΕΤΡΟΙ ΈΡΓΟΥ'!$B$12:$H$12,1,MATCH(Λεπτομέρειες[[#Headers],[ΔΙΟΙΚΗΤΙΚΟ ΠΡΟΣΩΠΙΚΟ]],Παράμετροι[#Headers],0))*Λεπτομέρειες[[#This Row],[ΕΚΤΙΜΩΜΕΝΗ ΕΡΓΑΣΙΑ]]","v":{"v":9375,"d":"9,375 €"}},{"$f":"INDEX(Παράμετροι[],MATCH(Λεπτομέρειες[[#This Row],[ΤΥΠΟΣ ΕΡΓΟΥ]],Παράμετροι[ΤΥΠΟΣ ΕΡΓΟΥ],0),MATCH(Λεπτομέρειες[[#Headers],[ΣΥΝΕΡΓΆΤΗΣ ΓΕΝΙΚΩΝ ΥΠΟΘΕΣΕΩΝ]],Παράμετροι[#Headers],0))*INDEX('ΠΑΡΆΜΕΤΡΟΙ ΈΡΓΟΥ'!$B$12:$H$12,1,MATCH(Λεπτομέρειες[[#Headers],[ΣΥΝΕΡΓΆΤΗΣ ΓΕΝΙΚΩΝ ΥΠΟΘΕΣΕΩΝ]],Παράμετροι[#Headers],0))*Λεπτομέρειες[[#This Row],[ΠΡΑΓΜΑΤΙΚΉ ΕΡΓΑΣΊΑ]]","v":{"v":17850,"d":"17,850 €"}},{"$f":"INDEX(Παράμετροι[],MATCH(Λεπτομέρειες[[#This Row],[ΤΥΠΟΣ ΕΡΓΟΥ]],Παράμετροι[ΤΥΠΟΣ ΕΡΓΟΥ],0),MATCH(Λεπτομέρειες[[#Headers],[ΔΙΚΗΓΟΡΟΣ ΕΠΙΧΕΙΡΗΣΕΩΝ]],Παράμετροι[#Headers],0))*INDEX('ΠΑΡΆΜΕΤΡΟΙ ΈΡΓΟΥ'!$B$12:$H$12,1,MATCH(Λεπτομέρειες[[#Headers],[ΔΙΚΗΓΟΡΟΣ ΕΠΙΧΕΙΡΗΣΕΩΝ]],Παράμετροι[#Headers],0))*Λεπτομέρειες[[#This Row],[ΠΡΑΓΜΑΤΙΚΉ ΕΡΓΑΣΊΑ]]","v":{"v":6375,"d":"6,375 €"}},{"$f":"INDEX(Παράμετροι[],MATCH(Λεπτομέρειες[[#This Row],[ΤΥΠΟΣ ΕΡΓΟΥ]],Παράμετροι[ΤΥΠΟΣ ΕΡΓΟΥ],0),MATCH(Λεπτομέρειες[[#Headers],[ΣΥΝΗΓΟΡΟΣ ΥΠΕΡΑΣΠΙΣΗΣ]],Παράμετροι[#Headers],0))*INDEX('ΠΑΡΆΜΕΤΡΟΙ ΈΡΓΟΥ'!$B$12:$H$12,1,MATCH(Λεπτομέρειες[[#Headers],[ΣΥΝΗΓΟΡΟΣ ΥΠΕΡΑΣΠΙΣΗΣ]],Παράμετροι[#Headers],0))*Λεπτομέρειες[[#This Row],[ΠΡΑΓΜΑΤΙΚΉ ΕΡΓΑΣΊΑ]]","v":{"v":30600,"d":"30,600 €"}},{"$f":"INDEX(Παράμετροι[],MATCH(Λεπτομέρειες[[#This Row],[ΤΥΠΟΣ ΕΡΓΟΥ]],Παράμετροι[ΤΥΠΟΣ ΕΡΓΟΥ],0),MATCH(Λεπτομέρειες[[#Headers],[ΔΙΚΗΓΌΡΟΣ ΠΝΕΥΜΑΤΙΚΉΣ ΙΔΙΟΚΤΗΣΊΑΣ]],Παράμετροι[#Headers],0))*INDEX('ΠΑΡΆΜΕΤΡΟΙ ΈΡΓΟΥ'!$B$12:$H$12,1,MATCH(Λεπτομέρειες[[#Headers],[ΔΙΚΗΓΌΡΟΣ ΠΝΕΥΜΑΤΙΚΉΣ ΙΔΙΟΚΤΗΣΊΑΣ]],Παράμετροι[#Headers],0))*Λεπτομέρειες[[#This Row],[ΠΡΑΓΜΑΤΙΚΉ ΕΡΓΑΣΊΑ]]","v":{"v":0,"d":"0 €"}},{"$f":"INDEX(Παράμετροι[],MATCH(Λεπτομέρειες[[#This Row],[ΤΥΠΟΣ ΕΡΓΟΥ]],Παράμετροι[ΤΥΠΟΣ ΕΡΓΟΥ],0),MATCH(Λεπτομέρειες[[#Headers],[ΔΙΚΗΓΌΡΟΣ ΠΤΏΧΕΥΣΕΩΝ]],Παράμετροι[#Headers],0))*INDEX('ΠΑΡΆΜΕΤΡΟΙ ΈΡΓΟΥ'!$B$12:$H$12,1,MATCH(Λεπτομέρειες[[#Headers],[ΔΙΚΗΓΌΡΟΣ ΠΤΏΧΕΥΣΕΩΝ]],Παράμετροι[#Headers],0))*Λεπτομέρειες[[#This Row],[ΠΡΑΓΜΑΤΙΚΉ ΕΡΓΑΣΊΑ]]","v":{"v":0,"d":"0 €"}},{"$f":"INDEX(Παράμετροι[],MATCH(Λεπτομέρειες[[#This Row],[ΤΥΠΟΣ ΕΡΓΟΥ]],Παράμετροι[ΤΥΠΟΣ ΕΡΓΟΥ],0),MATCH(Λεπτομέρειες[[#Headers],[ΔΙΟΙΚΗΤΙΚΟ ΠΡΟΣΩΠΙΚΟ]],Παράμετροι[#Headers],0))*INDEX('ΠΑΡΆΜΕΤΡΟΙ ΈΡΓΟΥ'!$B$12:$H$12,1,MATCH(Λεπτομέρειες[[#Headers],[ΔΙΟΙΚΗΤΙΚΟ ΠΡΟΣΩΠΙΚΟ]],Παράμετροι[#Headers],0))*Λεπτομέρειες[[#This Row],[ΠΡΑΓΜΑΤΙΚΉ ΕΡΓΑΣΊΑ]]","v":{"v":9562.5,"d":"9,563 €"}}]
[null,"ΆΘΡΟΙΣΜΑ",{"$nulls":5},{"$f":"SUBTOTAL(109,Λεπτομέρειες[ΕΚΤΙΜΩΜΕΝΗ ΕΡΓΑΣΙΑ])","v":1500},{"$f":"SUBTOTAL(109,Λεπτομέρειες[ΠΡΑΓΜΑΤΙΚΉ ΕΡΓΑΣΊΑ])","v":1510},{"$f":"SUBTOTAL(109,Λεπτομέρειες[ΕΚΤΙΜΏΜΕΝΗ ΔΙΆΡΚΕΙΑ])","v":190},{"$f":"SUBTOTAL(109,Λεπτομέρειες[ΠΡΑΓΜΑΤΙΚΗ ΔΙΑΡΚΕΙΑ])","v":171}]

{"sheet":"ΣΥΝΟΛΑ ΕΡΓΟΥ","index":3,"n_rows":11,"n_cols":16,"rows_kept":11,"merged":[[3,2,3,7],[3,8,3,13],[3,15,14,19]]}
["Δείτε τα σύνολα έργου σε αυτό το φύλλο εργασίας. Η επωνυμία εταιρείας ενημερώνεται αυτόματα στο κελί στα δεξιά. Σε κελιά σε αυτή τη στήλη βρίσκονται χρήσιμες οδηγίες. Πατήστε το κάτω βέλος για να ξεκινήσετε.",{"$f":"'ΠΑΡΆΜΕΤΡΟΙ ΈΡΓΟΥ'!B1","v":"Επωνυμία εταιρείας"}]
["Ο τίτλος αυτού του φύλλου εργασίας βρίσκεται στο κελί στα δεξιά.",{"$f":"'ΠΑΡΆΜΕΤΡΟΙ ΈΡΓΟΥ'!B2","v":"Σχεδιασμός έργου για δικηγορικά γραφεία"}]
["Το κελί στα δεξιά περιέχει ένα μήνυμα εμπιστευτικότητας.",{"$f":"'ΠΑΡΆΜΕΤΡΟΙ ΈΡΓΟΥ'!B3","v":"Επωνυμία εταιρείας της εταιρείας"}]
["Η ετικέτα εκτιμωμενα είναι στο κελί C4, η ετικέτα πραγματικα στο κελί I4 και οι πληροφορίες συμβουλής στο κελί P4.",null,"ΕΚΤΙΜΩΜΕΝΑ",{"$nulls":5},"ΠΡΑΓΜΑΤΙΚΑ",{"$nulls":6},"ΠΛΗΡΟΦΟΡΙΕΣ: \nΑυτός ο Συγκεντρωτικός Πίνακας δεν ανανεώνεται αυτόματα.  Για να τον ανανεώσετε, επιλέξτε τον (οποιοδήποτε κελί μέσα στον Συγκεντρωτικό Πίνακα) και στην καρτέλα ΕΡΓΑΛΕΊΑ ΣΥΓΚΕΝΤΡΩΤΙΚΟΥ ΠΊΝΑΚΑ | ΑΝΑΛΥΣΗ της κορδέλας επιλέξτε \"Ανανέωση\".  Εναλλακτικά, πατήστε τον συνδυασμό πλήκτρων SHIFT + F10, επιλέγοντας τον Συγκεντρωτικό Πίνακα και επιλέξτε \"Ανανέωση\"."]
["Ο Συγκεντρωτικός Πίνακας που ξεκινάει στο κελί στα δεξιά ενημερώνεται αυτόματα","ΟΝΟΜΑ ΕΡΓΟΥ","ΣΥΝΕΡΓΆΤΗΣ ΓΕΝΙΚΩΝ ΥΠΟΘΕΣΕΩΝ ","ΕΠΙΧΕΙΡΗΣΕΙΣ ","ΣΥΝΗΓΟΡΟΣ ΥΠΕΡΑΣΠΙΣΗΣ ","ΠΝΕΥΜΑΤΙΚΉ ΙΔΙΟΚΤΗΣΙΑ ","ΠΤΩΧΕΥΣΗ ","ΔΙΟΙΚΗΤΙΚΟ ΠΡΟΣΩΠΙΚΟ ","ΣΥΝΕΡΓΆΤΗΣ ΓΕΝΙΚΩΝ ΥΠΟΘΕΣΕΩΝ  ","ΕΠΙΧΕΙΡΗΣΕΙΣ  ","ΣΥΝΗΓΟΡΟΣ ΥΠΕΡΑΣΠΙΣΗΣ  ","ΠΤΩΧΕΥΣΗ  ","ΠΝΕΥΜΑΤΙΚΉ ΙΔΙΟΚΤΗΣΙΑ  ","ΔΙΟΙΚΗΤΙΚΟ ΠΡΟΣΩΠΙΚΟ  "]
[null,"Έργο 1",{"v":7000,"d":"7,000.00 €"},{"v":20000,"d":"20,000.00 €"},{"v":0,"d":"0.00 €"},{"v":0,"d":"0.00 €"},{"v":0,"d":"0.00 €"},{"v":12500,"d":"12,500.00 €"},{"v":7700,"d":"7,700.00 €"},{"v":22000,"d":"22,000.00 €"},{"v":0,"d":"0.00 €"},{"v":0,"d":"0.00 €"},{"v":0,"d":"0.00 €"},{"v":13750,"d":"13,750.00 €"}]
[null,"Έργο 2",{"v":14000,"d":"14,000.00 €"},{"v":40000,"d":"40,000.00 €"},{"v":0,"d":"0.00 €"},{"v":11000,"d":"11,000.00 €"},{"v":0,"d":"0.00 €"},{"v":20000,"d":"20,000.00 €"},{"v":13650,"d":"13,650.00 €"},{"v":39000,"d":"39,000.00 €"},{"v":0,"d":"0.00 €"},{"v":10725,"d":"10,725.00 €"},{"v":0,"d":"0.00 €"},{"v":19500,"d":"19,500.00 €"}]
[null,"Έργο 3",{"v":35000,"d":"35,000.00 €"},{"v":0,"d":"0.00 €"},{"v":75000,"d":"75,000.00 €"},{"v":0,"d":"0.00 €"},{"v":0,"d":"0.00 €"},{"v":18750,"d":"18,750.00 €"},{"v":35000,"d":"35,000.00 €"},{"v":0,"d":"0.00 €"},{"v":75000,"d":"75,000.00 €"},{"v":0,"d":"0.00 €"},{"v":0,"d":"0.00 €"},{"v":18750,"d":"18,750.00 €"}]
[null,"Έργο 4",{"v":5250,"d":"5,250.00 €"},{"v":0,"d":"0.00 €"},{"v":0,"d":"0.00 €"},{"v":24750,"d":"24,750.00 €"},{"v":0,"d":"0.00 €"},{"v":5625,"d":"5,625.00 €"},{"v":5075,"d":"5,075.00 €"},{"v":0,"d":"0.00 €"},{"v":0,"d":"0.00 €"},{"v":23925,"d":"23,925.00 €"},{"v":0,"d":"0.00 €"},{"v":5437.5,"d":"5,437.50 €"}]
[null,"Έργο 5",{"v":17500,"d":"17,500.00 €"},{"v":6250,"d":"6,250.00 €"},{"v":30000,"d":"30,000.00 €"},{"v":0,"d":"0.00 €"},{"v":0,"d":"0.00 €"},{"v":9375,"d":"9,375.00 €"},{"v":17850,"d":"17,850.00 €"},{"v":6375,"d":"6,375.00 €"},{"v":30600,"d":"30,600.00 €"},{"v":0,"d":"0.00 €"},{"v":0,"d":"0.00 €"},{"v":9562.5,"d":"9,562.50 €"}]
[null,"Γενικό Άθροισμα",{"v":78750,"d":"78,750.00 €"},{"v":66250,"d":"66,250.00 €"},{"v":105000,"d":"105,000.00 €"},{"v":35750,"d":"35,750.00 €"},{"v":0,"d":"0.00 €"},{"v":66250,"d":"66,250.00 €"},{"v":79275,"d":"79,275.00 €"},{"v":67375,"d":"67,375.00 €"},{"v":105600,"d":"105,600.00 €"},{"v":34650,"d":"34,650.00 €"},{"v":0,"d":"0.00 €"},{"v":67000,"d":"67,000.00 €"}]